[Event "45th FIDE Olympiad 2024"]
[Site "Budapest"]
[Date "2024.09.12"]
[Round "2.162"]
[White "Efimov, Igor"]
[Black "Suleymenov, Alisher"]
[Result "0-1"]
[ECO "D02"]
[WhiteElo "2338"]
[BlackElo "2484"]
[Annotator "TA"]
[PlyCount "64"]
[EventDate "2024.09.05"]
[EventType "team-tourn"]
[EventCountry "HUN"]
[SourceTitle "playchess.com"]
[Source "ChessBase"]
[SourceQuality "1"]
[WhiteTeam "Monaco"]
[BlackTeam "Kazakhstan"]
[WhiteTeamCountry "MNC"]
[BlackTeamCountry "KAZ"]
[TimeControl "40/5400+30:1800+30"]

{[%evp 11,64,9,19,7,4,-1,10,0,7,-1,-6,-43,-47,-46,-48,-136,-64,-48,-55,-87,-87,-135,-140,-131,-115,-107,-117,-137,-132,-138,-121,-144,-133,-149,-150,-198,-170,-170,-187,-187,-176,-204,-200,-202,-210,-261,-264,-294,-281,-545,-530,-668,-661,-778,-772]} 1. Nf3 Nf6 2. d4 g6 3. g3 Bg7 4. Bg2 d5 5. O-O O-O 6. Nbd2 a5 7. b3 a4 8. Ba3 c6 9. e3 {The position is equal.} Bf5 10. Ne5 Nbd7 11. g4 Nxe5 12. gxf5 Neg4 13. Qf3 {[#]} (13. h3 $15 axb3 14. Qc1 (14. axb3 Nh6 $15)) 13... Nh6 ({Black should try} 13... axb3 $1 $17 14. axb3 Nxh2 15. Kxh2 Rxa3 16. Rxa3 Qd6+ 17. Qg3 Qxa3) 14. fxg6 $1 $15 hxg6 15. Qh3 {White is on the road to losing.} Re8 16. f4 ({Better is} 16. Bb2) 16... axb3 17. axb3 {[%cal Ba2b3,Bb3b4,Bb4b5][%mdl 32]} Qa5 18. b4 Qb5 19. Rfe1 {[#]} Ra4 $1 20. Bf1 Qb6 {aiming for ...Rea8. Black is more active.} 21. b5 Qa5 22. Nb3 Qc3 $36 {[%cal Oa4a3][%mdl 2048] Threatens to win with ...Rxa3! Black is on the roll.} 23. e4 (23. Reb1 $17) 23... Nxe4 (23... Qxc2 $2 24. Re2 $18) 24. Qxc3 Nxc3 25. bxc6 bxc6 {[%cal Oh6f5]} (25... Bxd4+ $2 {loses.} 26. Nxd4 bxc6 27. Nxc6 $18) 26. Bb2 Rxa1 (26... Bxd4+ 27. Nxd4 Rxd4 28. Bxc3 Rxf4 29. Rxe7 $16) 27. Rxa1 Ne4 {[%cal Oc6c5]} 28. Ra7 {[#]} c5 $1 {[%mdl 512] Strongly threatening ...c4.} 29. Na5 (29. Bd3 c4) 29... Rb8 30. Nb7 $2 (30. Rb7 Rxb7 (30... Bxd4+ $2 31. Bxd4 Rxb7 32. Nxb7 $19) 31. Nxb7) 30... Nf5 {Black is clearly winning.} 31. Bd3 Nxd4 {A dynamic duo of knights.} 32. Kg2 Nc6 {[%csl LRa7,LRb2] Weighted Error Value: White=0.47/Black=0.08 (flawless) .  Mistake:       	White=4     	Black=1      Inaccurate:     	White=2     	---        OK:         	White=5     	Black=15     Best:        	White=2     	---        Strong:       	White=1     	---} 0-1

[Event "45th FIDE Olympiad 2024"]
[Site "Budapest"]
[Date "2024.09.12"]
[Round "2.163"]
[White "Zhalmakhanov, Ramazan"]
[Black "Levacic, Damir"]
[Result "1-0"]
[ECO "B06"]
[WhiteElo "2497"]
[BlackElo "2097"]
[Annotator "TA"]
[PlyCount "67"]
[EventDate "2024.09.05"]
[EventType "team-tourn"]
[EventCountry "HUN"]
[SourceTitle "playchess.com"]
[Source "ChessBase"]
[SourceQuality "1"]
[WhiteTeam "Kazakhstan"]
[BlackTeam "Monaco"]
[WhiteTeamCountry "KAZ"]
[BlackTeamCountry "MNC"]
[TimeControl "40/5400+30:1800+30"]

{[%evp 9,67,37,54,0,0,-18,-13,-30,-6,9,29,20,134,105,165,162,178,156,229,203,302,292,268,195,333,355,294,185,179,180,181,181,183,188,179,179,491,99,253,260,245,260,241,250,994,822,5514,5497,29986,29987,29987,1534,6303,6287,4894,641,728,721,683,681]} 1. e4 g6 2. d4 Bg7 3. Nc3 d6 4. f4 a6 5. Nf3 Nd7 6. e5 ({Better is} 6. Bc4 $14 e6 7. f5) 6... Nh6 $11 7. Bd3 c5 8. e6 {The position is equal.} fxe6 9. Ng5 Nf8 10. dxc5 d5 (10... dxc5 $11 11. Bd2 Rb8) 11. Na4 $1 $36 {[%mdl 2048] Keeping Black busy. White has more active pieces.} Rb8 (11... Qa5+ $16 {is a better defense.} 12. c3 Bd7) 12. c3 $18 Qc7 13. O-O Bd7 (13... Qc6 $16 14. Be3 Nf7) 14. Be3 $1 Nf5 (14... Bxa4 {keeps fighting.} 15. Qxa4+ Qc6) 15. Bxf5 $1 exf5 16. Nb6 Bc6 {Black is weak on the dark squares} (16... Ne6 {might work better.} 17. Nxe6 (17. Qxd5 Nxg5 18. Nxd7 Qxd7 $16) (17. Nxd5 Qc6 $18) 17... Bxe6) 17. Bd4 (17. Nxd5 Qd8 18. c4 Rg8 $18) 17... Rg8 18. Qb3 Rd8 19. Rae1 h6 20. Ne6 Nxe6 21. Rxe6 Kf7 22. Rfe1 Rge8 $2 {[#]} (22... Bxd4+ {is a better chance.} 23. cxd4 Qxf4) 23. R1e5 $2 Bf6 $2 {This costs Black the game.} (23... Bxe5 $16 24. Bxe5 Qxb6 25. Qxb6 Kxe6) 24. Nxd5 Bxd5 25. Rxd5 {[%cal Oe6f6]} Bxd4+ 26. cxd4 Kg7 $2 {[#]} (26... Rxd5 27. Qxd5 Kg7) 27. Qg3 $1 g5 (27... Rxd5 28. Qxg6+) 28. Rxf5 {Intending Qh3 and mate.} ({Weaker is} 28. fxg5 Qxg3 29. Rxd8 Qh4 30. Rxe8 Qxd4+ (30... Qxg5 $2 {loses.} 31. R6xe7+ Kf6 32. Re3 $18) 31. Kf1 Qc4+ (31... Qxc5 $2 {too greedy.} 32. gxh6+ Kh7 33. R8xe7+ Kh8 34. b3 $18) 32. Re2 Qf4+ (32... Qxa2 $2 33. R8xe7+ Kg6 34. gxh6 $18) 33. Kg1 Qc1+ 34. Kf2 Qf4+ 35. Kg1 Qc1+ 36. Kf2 Qf4+ 37. Ke1 Qc1+ 38. Kf2 $11) 28... Rxd4 {[#]} 29. Rxg5+ $1 {[%mdl 512]} Kf7 {[#]} 30. Qb3 $1 Rd1+ {White is clearly winning.} (30... hxg5 31. Rc6+) 31. Re1+ e6 32. Qxd1 (32. Rf5+ $142 Kg7 33. Qxd1) 32... hxg5 33. Qh5+ Kf8 34. Qh8+ {Weighted Error Value: White=0.60/Black=0.58.  Missed win:     	White=1     	---        Mistake:       	---       	Black=8      Inaccurate:     	White=1     	Black=1      OK:         	White=5     	Black=7      Best:        	White=2     	Black=1      Strong:       	White=2     	---} 1-0

[Event "45th FIDE Olympiad 2024"]
[Site "Budapest"]
[Date "2024.09.12"]
[Round "2.164"]
[White "Meylan, Andre"]
[Black "Ansat, Aldiyar"]
[Result "0-1"]
[ECO "B73"]
[WhiteElo "2165"]
[BlackElo "2457"]
[Annotator "TA"]
[PlyCount "120"]
[EventDate "2024.09.05"]
[EventType "team-tourn"]
[EventCountry "HUN"]
[SourceTitle "playchess.com"]
[Source "ChessBase"]
[SourceQuality "1"]
[WhiteTeam "Monaco"]
[BlackTeam "Kazakhstan"]
[WhiteTeamCountry "MNC"]
[BlackTeamCountry "KAZ"]
[TimeControl "40/5400+30:1800+30"]

{[%evp 23,120,0,0,-1,-2,0,0,0,0,0,-6,-5,0,0,0,-13,0,-18,-2,-35,-12,-12,-5,-27,-24,-24,-24,-25,-25,-29,-20,-10,-23,-113,-115,-128,-127,-140,-118,-118,-104,-79,-72,-83,-36,-66,-56,-96,-77,-77,-77,-134,-140,-140,-140,-141,-148,-153,-153,-205,-194,-205,-218,-310,-305,-436,-425,-403,-422,-442,-463,-456,-456,-423,-350,-500,-496,-481,-454,-827,-742,-1127,-1008,-4778,-3116,-6617,-4631,-4622,-4618,-29984,-29981,-29981,-29982,-29982,-29978,-29978,-29970,-29967,-29968]} 1. e4 c5 2. Nf3 d6 3. d4 cxd4 4. Nxd4 Nf6 5. Nc3 Nc6 6. Be2 g6 7. Be3 Bg7 8. O-O O-O 9. f4 Qb6 10. Qd3 Ng4 11. Bxg4 Bxd4 12. Nd5 Bxe3+ (12... Qxb2 $2 {too greedy.} 13. Nxe7+ Nxe7 14. Bxd4 $18) 13. Qxe3 Qxe3+ (13... Qxb2 {looks sharper.} 14. f5 Qe5 15. f6 Kh8) 14. Nxe3 Bxg4 15. Nxg4 {The position is equal.} f6 16. c3 b5 17. Ne3 Kf7 18. Rad1 h5 19. Rf3 Rac8 20. Nc2 a5 21. Nd4 Nxd4 22. Rxd4 $15 {[%mdl 4096] Endgame. KRR-KRR} Rc5 23. Rfd3 Rb8 24. Kf2 b4 25. cxb4 axb4 26. Rb3 Rc2+ 27. Kf3 Ra8 28. a3 (28. Rdxb4 $11 Rxa2 29. Rb8) 28... bxa3 $17 29. bxa3 Ra2 {[%cal Oa8c8]} 30. Rdd3 h4 31. Re3 Ra4 32. h3 Ke6 33. Rbd3 Ra1 {Black is much more active.} (33... f5 $17 34. exf5+ Kxf5) 34. Rb3 Ra5 35. Rbd3 {White is on the road to losing.} g5 {[#] aiming for ...Rf1+.} 36. f5+ Kf7 37. Rb3 ({Better is} 37. g3) 37... Ra2 38. Red3 Re5 39. Rbc3 Ra1 40. Rd4 Rf1+ 41. Ke2 (41. Ke3 $17 {was worth a try.}) 41... Rfxf5 $19 42. Rf3 Rxf3 43. Kxf3 {KR-KR} (43. gxf3 {keeps fighting.} Rc5 44. a4) 43... Rc5 44. Ra4 (44. Ke3 {was called for.}) 44... d5 45. exd5 Rxd5 46. Ra7 f5 47. a4 Rd3+ 48. Ke2 Ra3 49. a5 Kf6 50. a6 e6 51. Ra8 (51. Kf1 $142 Ke5 52. Kf2) 51... Ke5 {Strongly threatening ...Kf4.} 52. a7 {[#]} Kf4 $1 53. Re8 Rxa7 54. Rxe6 Kg3 55. Re5 Ra2+ 56. Kf1 Rf2+ {Black mates.} 57. Kg1 Rxg2+ 58. Kh1 Rd2 59. Re3+ Kf4 60. Ra3 Rf2 {Weighted Error Value: White=0.71/Black=0.12 (very precise) .  Mistake:       	White=6     	Black=1      Inaccurate:     	White=4     	---        OK:         	White=10    	Black=18     Best:        	---       	Black=4} 0-1

[Event "45th FIDE Olympiad 2024"]
[Site "Budapest"]
[Date "2024.09.12"]
[Round "2.165"]
[White "Khusenkhojaev, Mustafokhuja"]
[Black "Neiksans, Arturs"]
[Result "1-0"]
[ECO "A88"]
[WhiteElo "2283"]
[BlackElo "2571"]
[Annotator "TA"]
[PlyCount "87"]
[EventDate "2024.09.05"]
[EventType "team-tourn"]
[EventCountry "HUN"]
[SourceTitle "playchess.com"]
[Source "ChessBase"]
[SourceQuality "1"]
[WhiteTeam "Tajikistan"]
[BlackTeam "Latvia"]
[WhiteTeamCountry "TJK"]
[BlackTeamCountry "LAT"]
[TimeControl "40/5400+30:1800+30"]

{[%evp 15,87,43,39,44,55,41,36,57,49,20,37,48,67,13,86,21,31,42,54,47,57,44,76,67,90,85,107,100,88,102,97,88,211,162,245,221,270,267,362,375,398,397,393,383,394,401,412,416,437,406,484,481,631,606,952,947,1290,521,518,518,516,509,1768,1083,1024,560,737,639,29984,635,916,884,29989,29990]} 1. d4 f5 2. Nf3 Nf6 3. g3 g6 4. Bg2 Bg7 5. O-O O-O 6. c4 d6 7. Nc3 c6 8. Rb1 a5 9. Qb3 h6 10. Rd1 Nbd7 11. Qc2 {White is slightly better.} Qe8 12. d5 Nc5 13. Be3 cxd5 14. cxd5 (14. Bxc5 $14 dxc5 15. cxd5 (15. Nxd5 Nxd5 16. cxd5 b6 $14)) 14... a4 (14... f4 $11 {keeps the balance.} 15. Bxc5 (15. Bxf4 Bf5 $11) 15... Bf5) 15. Rbc1 (15. Bxc5 $16 dxc5 16. b4) 15... b6 $11 16. h3 Nh5 17. Bd4 Bd7 18. Bxg7 Kxg7 19. Nd4 f4 20. g4 Nf6 21. b4 axb3 22. axb3 {[%cal Ba2b3,Bb3b4][%mdl 32]} g5 23. b4 Na6 {This move loses the game for Black.} (23... Na4 $16) 24. Qb2 $36 {[%mdl 2048] White is in control.} h5 (24... Nc7 $142 25. Re1 h5) 25. Ne6+ $18 Bxe6 26. dxe6 hxg4 27. hxg4 (27. Bxa8 Qxa8 28. Nd5 gxh3 $18) 27... Nc7 28. Bxa8 Qxa8 29. f3 Nxe6 30. Nd5 Qb7 31. Kg2 b5 32. Rd2 Rf7 {[%cal Bf8f7,Bf7f6,Bf6g6][%mdl 32]} 33. Rh1 Qc6 34. Rh5 Kf8 {[%cal Bg7f8,Bf8e8,Be8f7,Bf7g8][%mdl 32]} 35. Nxf6 Rxf6 36. Rh7 {Active counter play!} (36. Rc2 $142 Qd5 37. Rh7) 36... Ke8 37. Rc2 Qa6 38. Qc3 Nf8 (38... Rf8 $142 39. Qd2 Kd7) 39. Rh8 Kf7 40. Rh5 Rg6 41. Qd3 {[#] Strongly threatening Qd5+.} Qa4 42. Rc7 (42. Qf5+ $142 Rf6 43. Qd5+ (43. Qxg5 $2 {perishes.} Qxc2 44. Kf2 Re6 $19) 43... Re6 44. Rc8 Qa1 45. Rxf8+ (45. Qxb5 Rxe2+ 46. Qxe2 Qf6 $18) 45... Kxf8 46. Qxe6 Qf6 47. Qc8+ Kg7 48. Qh8+ Kf7 49. Rh7+ Ke6 50. Rh6) 42... Qa2 43. Qf5+ Kg8 44. Rxe7 {Weighted Error Value: White=0.73/Black=0.66.  Mistake:       	White=2     	Black=4      Inaccurate:     	White=2     	Black=5      OK:         	White=13    	Black=8      Best:        	White=1     	Black=1} ({Stronger than} 44. Rxg5 Qxe2+ 45. Kg1 Qe1+ 46. Kg2 Qg3+ 47. Kf1 Qxf3+ 48. Kg1 Qe3+ 49. Kf1 Kg7 $11) 1-0

[Event "45th FIDE Olympiad 2024"]
[Site "Budapest"]
[Date "2024.09.12"]
[Round "2.166"]
[White "Meshkovs, Nikita"]
[Black "Karimov, Alisher"]
[Result "1-0"]
[ECO "A45"]
[WhiteElo "2534"]
[BlackElo "2240"]
[Annotator "TA"]
[PlyCount "95"]
[EventDate "2024.09.05"]
[EventType "team-tourn"]
[EventCountry "HUN"]
[SourceTitle "playchess.com"]
[Source "ChessBase"]
[SourceQuality "1"]
[WhiteTeam "Latvia"]
[BlackTeam "Tajikistan"]
[WhiteTeamCountry "LAT"]
[BlackTeamCountry "TJK"]
[TimeControl "40/5400+30:1800+30"]

{[%evp 9,95,-62,-66,-65,-65,-82,-66,-66,0,0,-7,0,0,0,19,19,82,86,116,97,114,118,104,111,114,127,125,127,150,154,146,104,133,145,110,99,160,102,169,172,218,96,91,24,25,19,137,131,193,187,174,195,201,203,292,282,282,289,277,282,331,322,438,435,396,427,422,431,438,447,432,424,679,674,1168,878,882,852,866,798,821,821,821,812,956,934,906,897]} 1. d4 Nf6 2. Bg5 Ne4 3. h4 c5 4. Nd2 Nxg5 5. d5 {[#]} Ne6 $1 6. dxe6 dxe6 7. h5 Nc6 8. e3 {Black is slightly better.} e5 (8... a6 $15) 9. Qf3 $1 $11 e6 10. O-O-O {[%cal Oh5h6]} Qd5 11. Bb5 Qxf3 (11... Bd7 $5) 12. Ngxf3 f6 (12... Bd7 $11 {remains equal.}) 13. Ne4 $16 Be7 14. Bxc6+ bxc6 15. Nd6+ Bxd6 16. Rxd6 Bd7 17. Rhd1 O-O-O 18. Nd2 $1 {Ne4 would now be deadly. White is much more active.} Be8 19. Rxd8+ (19. Rxe6 Bxh5 20. Rh1 (20. Rxc6+ $2 Kb7 $19) 20... Kd7 $15) 19... Kxd8 {[%mdl 4096] Endgame. KRB-KRN} 20. Ne4+ Kc8 21. Nxc5 (21. h6 gxh6 22. Rd6 (22. Nxc5 Rg8 $16) (22. Nxf6 Rf8 $16) 22... Kc7 23. Rxe6 Rf8 24. Nxc5 (24. Rxf6 Rxf6 25. Nxf6 Bg6 $18) (24. Re7+ Kb6 $18) 24... a5 $14) 21... Bxh5 22. Rd6 ({Of course not} 22. Rd7 $6 Rd8 23. Rxd8+ (23. Rxa7 $2 Rd1#) 23... Kxd8 $14) 22... Rd8 (22... Be2 $142 23. Rxc6+ (23. Rxe6 h5 $16) 23... Kb8 24. Rxe6 (24. Nxe6 Bf1 $16) 24... Bf1) 23. Rxc6+ (23. Rxe6 $2 Rd1#) (23. Rxd8+ Kxd8 24. Nxe6+ Ke7 25. Nxg7 Bg6 $17) 23... Kb8 {[%csl Gh5][%cal Rd8d1]} 24. f3 $1 (24. Rxe6 $2 Rd1#) 24... Rc8 {[#]} (24... e4 $142 25. Nxe4 (25. Nxe6 exf3 26. gxf3 Rd7 $14) 25... e5) 25. Nd7+ (25. Rxc8+ $1 $18 Kxc8 26. Nxe6) 25... Kb7 {[#]} 26. Rxe6 ({Better is} 26. Rxc8 $1 $16 Kxc8 27. Nc5) 26... Rc7 $1 $11 27. Rd6 {b4 is the strong threat.} Be8 {Black is on the road to losing.} (27... e4 $1 $11) 28. Nf8 $16 h5 (28... Rc6 $16 29. Rxc6 Kxc6) 29. Ne6 $18 Re7 30. c4 {Inhibits Bb5.} h4 31. Kd2 Kc8 (31... Bf7 $142) 32. Rd8+ Kb7 33. Nc5+ Kc7 34. Ra8 Kb6 35. b4 {[%cal Bb2b4,Bb4b5][%mdl 32]} Bc6 36. Rb8+ Kc7 37. Na6+ Kd6 {White is clearly winning.} 38. b5 Bb7 39. Rd8+ Ke6 40. Nc5+ Kf5 (40... Kf7 $142 41. e4 Rc7 42. Nxb7 Rxb7) 41. Rb8 e4 {[%cal Oe4f3] And now ...exf3! would win.} 42. Nxb7 exf3 43. gxf3 {KRN-KR} g5 {[%cal Bg7g5,Bg5g4,Bg4f3][%mdl 32]} 44. Nd6+ Ke5 45. Ne4 g4 46. Rh8 gxf3 47. Nf2 Rg7 48. Nd3+ {Weighted Error Value: White=0.09 (flawless) /Black=0.33.  Mistake:       	White=2     	Black=8      Inaccurate:     	---       	Black=4      OK:         	White=22    	Black=8      Best:        	White=4     	Black=3      Strong:       	White=2     	Black=1} 1-0

[Event "45th FIDE Olympiad 2024"]
[Site "Budapest"]
[Date "2024.09.12"]
[Round "2.167"]
[White "Ilkhomi, Jaloliddin"]
[Black "Kantans, Toms"]
[Result "1/2-1/2"]
[ECO "A34"]
[WhiteElo "2227"]
[BlackElo "2486"]
[Annotator "TA"]
[PlyCount "120"]
[EventDate "2024.09.05"]
[EventType "team-tourn"]
[EventCountry "HUN"]
[SourceTitle "playchess.com"]
[Source "ChessBase"]
[SourceQuality "1"]
[WhiteTeam "Tajikistan"]
[BlackTeam "Latvia"]
[WhiteTeamCountry "TJK"]
[BlackTeamCountry "LAT"]
[TimeControl "40/5400+30:1800+30"]

{[%evp 21,120,25,25,-26,-25,-56,-26,-36,-23,-30,0,-34,-20,-59,-52,-57,-17,-126,-122,-161,-118,-186,-179,-183,-206,-274,-255,-243,-208,-224,-204,-235,-160,-161,-129,-207,-206,-212,-200,-200,-191,-208,-174,-187,-187,-157,-183,-220,-200,-213,-131,-127,-112,-104,-104,-191,-191,-207,-92,-107,-107,-93,-96,-96,-96,-97,-54,-65,-47,-41,-43,-39,-25,-48,-47,-47,-30,-65,-24,-62,0,0,0,0,0,0,0,0,0,0,0,0,0,0,0,0,0,0,0,0,0]} 1. Nf3 Nf6 2. c4 c5 3. Nc3 Nc6 4. g3 d5 5. cxd5 Nxd5 6. Bg2 Nc7 7. O-O e5 8. d3 Be7 9. Nd2 O-O 10. Nc4 f6 11. f4 exf4 {A34: Symmetrical English: 2 Nc3, lines with ...d5.} 12. gxf4 (12. Bxf4 $142 Ne6 13. Bd2) 12... f5 13. Be3 Qe8 $146 ({Predecessor:} 13... Be6 14. Bf2 Nd5 15. Nxd5 Bxd5 16. Nd2 Bxg2 17. Kxg2 Qd5+ 18. Nf3 Bf6 19. Qc2 b6 {½-½ Schachinger,M (2350)-Likavsky,T (2476) AUT-chT 0910 2009 (7.5)}) 14. Ne5 Nxe5 15. fxe5 Be6 16. Bxb7 Rb8 17. Bg2 Rxb2 18. Na4 Rb5 19. Qc2 (19. Qc1 $1 $11 {remains equal.}) 19... Nd5 $1 $17 20. Bd2 Nb4 21. Bxb4 (21. Qc1 $17 {keeps fighting.}) 21... cxb4 $19 (21... Rxb4 22. Nxc5 Qc8 23. Rac1 $11) 22. d4 Ra5 $1 23. Nc5 Bxc5 24. dxc5 Qb8 25. c6 Qxe5 (25... Rxe5 26. Rac1 $15) 26. Qb1 Qd4+ (26... Qxe2 27. Qxb4 Qe3+ (27... Rxa2 28. Rxa2 Qxa2 29. c7 $11) 28. Kh1 $11) 27. Kh1 Bd5 28. Qd3 (28. Rd1 $17 Bxg2+ 29. Kxg2 Qg4+ 30. Kh1) 28... Qxd3 29. exd3 Rc8 (29... Bxa2 $2 30. Rxa2 Rc5 31. d4 $18 (31. Rxa7 Rc2 $18)) 30. Bxd5+ Rxd5 31. Rac1 Rc7 (31... Rxd3 32. Rxf5 Rd6 33. c7 $17) 32. Rc4 a5 (32... Rxd3 33. Rxf5 Rd6 34. Rfc5 $15) 33. d4 Kf7 34. Re1 {[#]} g6 $1 35. Kg2 Kf6 36. Kf3 Rd6 37. Rec1 Ke6 38. Ke3 {[#]} (38. h4 $17) 38... Rd5 $1 $19 39. Rc5 a4 (39... Rxc5 $19 40. Rxc5 Kd6 41. Rxa5 Rxc6) 40. Kd3 $17 Rxc5 ({Don't play} 40... Kd6 41. Rxd5+ Kxd5 42. Rc5+ Kd6 43. Rb5) 41. Rxc5 Kd6 42. Rb5 Rxc6 43. Rxb4 Rc1 44. Rxa4 Rh1 45. Ra6+ Kd5 46. Ra5+ Kc6 47. Rc5+ Kd6 48. Rc2 Rf1 49. Ke3 g5 50. a4 f4+ ({Black should play} 50... Ra1 $15 51. Rc5 Ra3+ (51... Rxa4 52. Rxf5 Ra2 53. Rxg5 $11) 52. Kf2 Ke6 (52... Rxa4 53. Rxf5 Rxd4 54. Rxg5 $11) 53. Rc6+ Kd5) 51. Ke4 $11 f3 52. a5 g4 53. a6 Ra1 54. Kf4 h5 55. h3 Kd5 56. hxg4 hxg4 57. Rf2 Rxa6 58. Kxg4 Ke4 59. Rxf3 Rg6+ 60. Kh5 Kxf3 1/2-1/2

[Event "45th FIDE Olympiad 2024"]
[Site "Budapest"]
[Date "2024.09.12"]
[Round "2.168"]
[White "Starostits, Ilmars"]
[Black "Kabilov, Amin"]
[Result "1/2-1/2"]
[ECO "D00"]
[WhiteElo "2344"]
[BlackElo "2212"]
[Annotator "RC"]
[PlyCount "100"]
[EventDate "2024.09.05"]
[EventType "team-tourn"]
[EventCountry "HUN"]
[SourceTitle "playchess.com"]
[Source "ChessBase"]
[SourceQuality "1"]
[WhiteTeam "Latvia"]
[BlackTeam "Tajikistan"]
[WhiteTeamCountry "LAT"]
[BlackTeamCountry "TJK"]
[TimeControl "40/5400+30:1800+30"]

1. d4 Nf6 2. Nf3 g6 3. Nc3 d5 4. Bf4 Bg7 5. e3 O-O 6. Be2 c5 7. O-O cxd4 8. exd4 Nc6 9. Ne5 Nd7 10. Nf3 Nf6 11. Re1 Ne4 12. Bb5 Nxc3 13. bxc3 Bd7 14. Rb1 Rc8 15. Qd2 Na5 16. Bd3 b6 17. Ba6 Rc6 18. Ne5 Re6 19. h4 Bc8 20. Bd3 Nc6 21. Nf3 Rxe1+ 22. Rxe1 Re8 23. h5 Bg4 24. hxg6 hxg6 25. Bb5 Qc8 26. Ne5 Nxe5 27. Bxe5 Bd7 28. Bd3 Bf5 29. Bb5 Bd7 30. Bf1 Qc6 31. Bd3 Bxe5 32. Rxe5 Kg7 33. Qe3 Qd6 34. Qg5 Bc6 35. Re3 Qf6 36. Qg3 Rc8 37. Ba6 Rd8 38. Qc7 Rd7 39. Qc8 Qd6 40. Bd3 Bb7 41. Qe8 Bc6 42. Qc8 Bb7 43. Qe8 Rc7 44. Rf3 e6 45. Qa4 Bc6 46. Qb3 e5 47. dxe5 Qxe5 48. Re3 Qg5 49. Qb4 Rc8 50. Qd4+ Qf6 1/2-1/2

[Event "45th FIDE Olympiad 2024"]
[Site "Budapest"]
[Date "2024.09.12"]
[Round "2.169"]
[White "Gazik, Viktor"]
[Black "Susilodinata, Andrean"]
[Result "1-0"]
[ECO "B10"]
[WhiteElo "2561"]
[BlackElo "2393"]
[Annotator "RC"]
[PlyCount "81"]
[EventDate "2024.09.05"]
[EventType "team-tourn"]
[EventCountry "HUN"]
[SourceTitle "playchess.com"]
[Source "ChessBase"]
[SourceQuality "1"]
[WhiteTeam "Slovakia"]
[BlackTeam "Indonesia"]
[WhiteTeamCountry "SVK"]
[BlackTeamCountry "INA"]
[TimeControl "40/5400+30:1800+30"]

1. e4 c6 2. Nf3 d5 3. e5 Bf5 4. Nh4 Bd7 5. Nf3 c5 6. c4 d4 7. g3 Nc6 8. Bg2 Bg4 9. Qe2 d3 10. Qe3 g6 11. Na3 Rc8 12. Ng5 Bh6 13. f3 Bxg5 14. Qxg5 Be6 15. b3 Qd4 16. Rb1 Qxe5+ 17. Qxe5 Nxe5 18. Bb2 f6 19. Kf2 Nc6 20. Rhe1 Bf5 21. Nb5 Rd8 22. f4 Kf7 23. Ba3 a6 24. Nc3 Nb4 25. Bxb7 Rb8 26. Bf3 Nc2 27. Bxc5 Nxe1 28. Rxe1 h5 29. b4 e6 30. b5 Rc8 31. Bd6 Ne7 32. bxa6 Nc6 33. Rb1 Rhd8 34. c5 e5 35. Bd5+ Ke8 36. fxe5 fxe5 37. Rb7 Rd7 38. Ne4 Kd8 39. Nf6 Ne7 40. Rxd7+ Bxd7 41. Bxe7+ 1-0